[Event "23rd ETCC Women 2021"]
[Site "Catez"]
[Date "2021.11.14"]
[Round "3.44"]
[White "Zaritovskaja, Margarita"]
[Black "Sibajeva, Marija"]
[Result "0-1"]
[ECO "B01"]
[WhiteElo "2040"]
[BlackElo "1946"]
[Annotator "NA"]
[PlyCount "72"]
[EventDate "2021.11.08"]
[EventType "team-tourn"]
[EventCountry "SLO"]
[SourceTitle "playchess.com"]
[Source "ChessBase"]
[SourceQuality "1"]
[WhiteTeam "Sweden"]
[BlackTeam "Lithuania"]
[WhiteTeamCountry "SWE"]
[BlackTeamCountry "LTU"]
[TimeControl "40/5400+30:1800+30"]

1. e4 {[%emt 0:00:03]} d5 {[%emt 0:00:09]} 2. exd5 {[%emt 0:00:04]} Qxd5 {
[%emt 0:00:06]} 3. Nc3 {[%emt 0:00:05]} Qa5 {[%emt 0:00:07]} 4. d4 {[%emt 0:00:
05]} Nf6 {[%emt 0:00:27]} 5. Nf3 {[%emt 0:00:17]} Bf5 {[%emt 0:00:16]} 6. Ne5 {
[%emt 0:00:26]} c6 {[%emt 0:00:29]} 7. Bc4 {[%emt 0:05:35]} e6 {[%emt 0:00:09]}
8. g4 {[%emt 0:03:38]} Bg6 {[%emt 0:00:05]} 9. Bd2 {[%emt 0:03:57]} Qb6 {
[%emt 0:02:11]} 10. Nxg6 {[%emt 0:03:04]} hxg6 {[%emt 0:00:14]} 11. Qe2 {
[%emt 0:04:40]} Qxd4 {[%emt 0:08:14]} 12. O-O-O {[%emt 0:14:20]} Qxg4 {[%emt 0:
03:29]} 13. f3 {[%emt 0:00:34]} Qh3 {[%emt 0:01:44]} 14. Bg5 {[%emt 0:15:44]}
Be7 {[%emt 0:00:58]} 15. Ne4 {[%emt 0:01:53]} Nbd7 {[%emt 0:07:31]} 16. Ng3 {
[%emt 0:12:09]} O-O-O {[%emt 0:12:58]} 17. a4 {[%emt 0:14:51]} Nc5 {[%emt 0:07:
00]} 18. Rxd8+ {[%emt 0:02:16]} Rxd8 {[%emt 0:05:13]} 19. a5 {[%emt 0:00:26]}
a6 {[%emt 0:07:56]} 20. Qe3 {[%emt 0:03:59]} Nd5 {[%emt 0:04:47]} 21. Bxd5 {
[%emt 0:00:41]} Bxg5 {[%emt 0:00:14]} 22. Qxg5 {[%emt 0:00:28]} Rxd5 {[%emt 0:
00:30]} 23. Qe7 {[%emt 0:00:37]} Qh6+ {[%emt 0:06:16]} 24. Kb1 {[%emt 0:00:09]}
Qf4 {[%emt 0:00:43]} 25. Qf8+ {[%emt 0:01:19]} Kc7 {[%emt 0:00:24]} 26. Qxg7 {
[%emt 0:00:55]} Qxf3 {[%emt 0:02:31]} 27. Rf1 {[%emt 0:02:46]} Rd1+ {[%emt 0:
00:33]} 28. Rxd1 {[%emt 0:00:02]} Qxd1+ {[%emt 0:00:06]} 29. Ka2 {[%emt 0:00:
03]} Qxc2 {[%emt 0:01:44]} 30. Qxf7+ {[%emt 0:00:09]} Kb8 {[%emt 0:00:15]} 31.
Qe8+ {[%emt 0:01:14]} Ka7 {[%emt 0:00:18]} 32. Qd8 {[%emt 0:00:48]} Qb3+ {
[%emt 0:03:08]} 33. Kb1 {[%emt 0:00:15]} Nd3 {[%emt 0:01:57]} 34. Qd4+ {
[%emt 0:00:44]} c5 {[%emt 0:00:14]} 35. Qf6 {[%emt 0:01:52]} Qd1+ {[%emt 0:00:
28]} 36. Ka2 {[%emt 0:00:39]} Nb4+ {[%emt 0:00:17]} 0-1

[Event "23rd ETCC Women 2021"]
[Site "Catez"]
[Date "2021.11.14"]
[Round "3.45"]
[White "Shvayger, Yuliya"]
[Black "Ptacnikova, Lenka"]
[Result "1-0"]
[ECO "B45"]
[WhiteElo "2351"]
[BlackElo "2200"]
[Annotator "NA"]
[PlyCount "77"]
[EventDate "2021.11.08"]
[EventType "team-tourn"]
[EventCountry "SLO"]
[SourceTitle "playchess.com"]
[Source "ChessBase"]
[SourceQuality "1"]
[WhiteTeam "Israel"]
[BlackTeam "Iceland"]
[WhiteTeamCountry "ISR"]
[BlackTeamCountry "ISL"]
[TimeControl "40/5400+30:1800+30"]

1. e4 {[%emt 0:00:14]} c5 {[%emt 0:00:05]} 2. Nf3 {[%emt 0:00:07]} e6 {[%emt 0:
00:22]} 3. d4 {[%emt 0:00:12]} cxd4 {[%emt 0:00:04]} 4. Nxd4 {[%emt 0:00:06]}
Nf6 {[%emt 0:00:18]} 5. Nc3 {[%emt 0:01:02]} Nc6 {[%emt 0:00:12]} 6. a3 {
[%emt 0:00:08]} Be7 {[%emt 0:02:50]} 7. Be3 {[%emt 0:05:14]} O-O {[%emt 0:03:
33]} 8. Be2 {[%emt 0:00:18]} d5 {[%emt 0:05:41]} 9. exd5 {[%emt 0:02:08]} Nxd5
{[%emt 0:01:10]} 10. Nxd5 {[%emt 0:03:29]} Qxd5 {[%emt 0:06:08]} 11. Bf3 {
[%emt 0:03:01]} Qa5+ {[%emt 0:00:16]} 12. b4 {[%emt 0:02:02]} Qc7 {[%emt 0:04:
51]} 13. Nxc6 {[%emt 0:19:45]} bxc6 {[%emt 0:00:20]} 14. Qd3 {[%emt 0:00:49]}
Bb7 {[%emt 0:11:37]} 15. O-O {[%emt 0:07:05]} a5 {[%emt 0:10:48]} 16. Qb3 {
[%emt 0:00:56]} Rfb8 {[%emt 0:15:10]} 17. c4 {[%emt 0:12:13]} Bd6 {[%emt 0:12:
23]} 18. h3 {[%emt 0:03:00]} c5 {[%emt 0:02:54]} 19. Bxb7 {[%emt 0:01:10]} Rxb7
{[%emt 0:00:22]} 20. b5 {[%emt 0:00:08]} f5 {[%emt 0:01:47]} 21. Rad1 {[%emt 0:
00:58]} a4 {[%emt 0:05:41]} 22. Qd3 {[%emt 0:03:36]} Bh2+ {[%emt 0:00:21]} 23.
Kh1 {[%emt 0:00:02]} Be5 {[%emt 0:00:41]} 24. Rfe1 {[%emt 0:00:36]} Re8 {
[%emt 0:01:56]} 25. Qc2 {[%emt 0:06:31]} f4 {[%emt 0:06:17]} 26. Bc1 {[%emt 0:
00:08]} Bd4 {[%emt 0:02:39]} 27. Re4 {[%emt 0:07:02]} g5 {[%emt 0:00:50]} 28.
Bb2 {[%emt 0:01:33]} e5 {[%emt 0:01:07]} 29. Bxd4 {[%emt 0:04:56]} cxd4 {
[%emt 0:00:05]} 30. Rdxd4 {[%emt 0:01:19]} Rxb5 {[%emt 0:00:25]} 31. Qxa4 {
[%emt 0:00:10]} Rb1+ {[%emt 0:00:50]} 32. Kh2 {[%emt 0:01:47]} Re7 {[%emt 0:01:
47]} 33. Rd5 {[%emt 0:00:32]} f3 {[%emt 0:00:48]} 34. gxf3 {[%emt 0:02:53]} Qb6
{[%emt 0:00:23]} 35. Kg2 {[%emt 0:01:12]} Qb2 {[%emt 0:02:05]} 36. Rb5 {
[%emt 0:01:02]} Qc1 {[%emt 0:00:24]} 37. Rxb1 {[%emt 0:00:31]} Qxb1 {[%emt 0:
00:04]} 38. Qb4 {[%emt 0:02:30]} Rb7 {[%emt 0:00:38]} 39. Qd6 {[%emt 0:01:11]}
1-0

[Event "23rd ETCC Women 2021"]
[Site "Catez"]
[Date "2021.11.14"]
[Round "3.46"]
[White "Thorsteinsdottir, Hallgerdur"]
[Black "Klinova, Masha"]
[Result "0-1"]
[ECO "C54"]
[WhiteElo "2010"]
[BlackElo "2264"]
[Annotator "NA"]
[PlyCount "50"]
[EventDate "2021.11.08"]
[EventType "team-tourn"]
[EventCountry "SLO"]
[SourceTitle "playchess.com"]
[Source "ChessBase"]
[SourceQuality "1"]
[WhiteTeam "Iceland"]
[BlackTeam "Israel"]
[WhiteTeamCountry "ISL"]
[BlackTeamCountry "ISR"]
[TimeControl "40/5400+30:1800+30"]

1. e4 {[%emt 0:00:08]} e5 {[%emt 0:00:04]} 2. Nf3 {[%emt 0:00:14]} Nc6 {
[%emt 0:00:06]} 3. Bc4 {[%emt 0:00:43]} Nf6 {[%emt 0:00:07]} 4. d3 {[%emt 0:00:
49]} Bc5 {[%emt 0:00:32]} 5. h3 {[%emt 0:01:41]} d6 {[%emt 0:01:11]} 6. c3 {
[%emt 0:01:16]} a6 {[%emt 0:02:36]} 7. Bb3 {[%emt 0:00:35]} O-O {[%emt 0:01:17]
} 8. Nbd2 {[%emt 0:03:48]} Be6 {[%emt 0:02:01]} 9. O-O {[%emt 0:04:17]} h6 {
[%emt 0:04:48]} 10. Re1 {[%emt 0:03:29]} Re8 {[%emt 0:02:24]} 11. Nf1 {[%emt 0:
06:07]} d5 {[%emt 0:01:44]} 12. Bc2 {[%emt 0:14:23]} d4 {[%emt 0:09:08]} 13.
Ng3 {[%emt 0:01:54]} b5 {[%emt 0:01:22]} 14. Nf5 {[%emt 0:22:48]} Bxf5 {
[%emt 0:12:18]} 15. exf5 {[%emt 0:00:10]} Qd7 {[%emt 0:11:03]} 16. g4 {[%emt 0:
00:41]} Rad8 {[%emt 0:00:20]} 17. a3 {[%emt 0:04:35]} dxc3 {[%emt 0:10:53]} 18.
bxc3 {[%emt 0:00:23]} e4 {[%emt 0:00:19]} 19. d4 {[%emt 0:07:16]} exf3 {
[%emt 0:00:49]} 20. Be3 {[%emt 0:12:43]} Be7 {[%emt 0:09:06]} 21. Qxf3 {
[%emt 0:00:12]} Qd5 {[%emt 0:01:15]} 22. Qd1 {[%emt 0:01:57]} Na5 {[%emt 0:00:
59]} 23. h4 {[%emt 0:00:41]} Nh7 {[%emt 0:05:34]} 24. Bf4 {[%emt 0:02:36]} Bd6
{[%emt 0:04:07]} 25. Be3 {[%emt 0:00:05]} Nc4 {[%emt 0:00:33]} 0-1

[Event "23rd ETCC Women 2021"]
[Site "Catez"]
[Date "2021.11.14"]
[Round "3.47"]
[White "Levitan, Ronit"]
[Black "Johannsdottir, Johanna Bjorg"]
[Result "1/2-1/2"]
[ECO "B22"]
[WhiteElo "2068"]
[BlackElo "1952"]
[Annotator "NA"]
[PlyCount "202"]
[EventDate "2021.11.08"]
[EventType "team-tourn"]
[EventCountry "SLO"]
[SourceTitle "playchess.com"]
[Source "ChessBase"]
[SourceQuality "1"]
[WhiteTeam "Israel"]
[BlackTeam "Iceland"]
[WhiteTeamCountry "ISR"]
[BlackTeamCountry "ISL"]
[TimeControl "40/5400+30:1800+30"]

1. e4 {[%emt 0:01:04]} c5 {[%emt 0:00:07]} 2. c3 {[%emt 0:00:10]} Nf6 {[%emt 0:
00:04]} 3. e5 {[%emt 0:00:24]} Nd5 {[%emt 0:00:05]} 4. d4 {[%emt 0:00:15]} cxd4
{[%emt 0:00:24]} 5. cxd4 {[%emt 0:00:07]} d6 {[%emt 0:00:05]} 6. Nf3 {[%emt 0:
00:41]} Nc6 {[%emt 0:00:05]} 7. Bc4 {[%emt 0:00:36]} dxe5 {[%emt 0:00:12]} 8.
dxe5 {[%emt 0:01:02]} Ndb4 {[%emt 0:00:06]} 9. O-O {[%emt 0:00:16]} Qxd1 {
[%emt 0:00:13]} 10. Rxd1 {[%emt 0:00:05]} Bg4 {[%emt 0:00:04]} 11. Nc3 {
[%emt 0:00:57]} Bxf3 {[%emt 0:01:13]} 12. gxf3 {[%emt 0:00:06]} Nxe5 {[%emt 0:
00:22]} 13. Bb3 {[%emt 0:00:35]} a6 {[%emt 0:03:29]} 14. f4 {[%emt 0:01:35]}
Nf3+ {[%emt 0:00:40]} 15. Kh1 {[%emt 0:00:11]} e6 {[%emt 0:01:02]} 16. f5 {
[%emt 0:00:47]} e5 {[%emt 0:15:15]} 17. Nd5 {[%emt 0:04:38]} Nxd5 {[%emt 0:12:
28]} 18. Bxd5 {[%emt 0:00:25]} Nd4 {[%emt 0:00:09]} 19. Bxb7 {[%emt 0:04:05]}
Ra7 {[%emt 0:00:17]} 20. Be4 {[%emt 0:04:40]} Bc5 {[%emt 0:01:41]} 21. Be3 {
[%emt 0:01:04]} O-O {[%emt 0:00:57]} 22. Rac1 {[%emt 0:01:03]} Bb6 {[%emt 0:01:
01]} 23. f6 {[%emt 0:02:49]} Rd8 {[%emt 0:07:58]} 24. fxg7 {[%emt 0:22:45]} f6
{[%emt 0:05:32]} 25. Bh6 {[%emt 0:01:14]} Rad7 {[%emt 0:04:15]} 26. Kg2 {
[%emt 0:05:12]} Rxg7+ {[%emt 0:04:29]} 27. Bxg7 {[%emt 0:00:08]} Kxg7 {[%emt 0:
00:03]} 28. b4 {[%emt 0:03:23]} f5 {[%emt 0:03:14]} 29. Bb7 {[%emt 0:04:51]}
Rd6 {[%emt 0:00:13]} 30. Rd3 {[%emt 0:14:49]} e4 {[%emt 0:01:54]} 31. Rg3+ {
[%emt 0:02:10]} Kf7 {[%emt 0:00:50]} 32. Rc8 {[%emt 0:05:31]} Ne2 {[%emt 0:01:
14]} 33. Rgg8 {[%emt 0:04:55]} Nf4+ {[%emt 0:00:41]} 34. Kg3 {[%emt 0:00:10]}
Ng6 {[%emt 0:07:15]} 35. Bxa6 {[%emt 0:03:47]} Bxf2+ {[%emt 0:12:21]} 36. Kxf2
{[%emt 0:00:09]} Rxa6 {[%emt 0:00:04]} 37. Ra8 {[%emt 0:00:38]} Re6 {[%emt 0:
00:19]} 38. h4 {[%emt 0:06:57]} e3+ {[%emt 0:00:43]} 39. Ke1 {[%emt 0:00:00]}
h5 {[%emt 0:07:28]} 40. b5 {[%emt 0:01:01]} Re4 {[%emt 0:03:07]} 41. Rgc8 {
[%emt 0:17:14]} Nxh4 {[%emt 0:17:38]} 42. Ra6 {[%emt 0:01:23]} Nf3+ {[%emt 0:
01:49]} 43. Ke2 {[%emt 0:00:12]} Nd4+ {[%emt 0:01:15]} 44. Kd3 {[%emt 0:01:57]}
Ne6 {[%emt 0:10:21]} 45. Ke2 {[%emt 0:12:01]} Nd4+ {[%emt 0:07:51]} 46. Kd3 {
[%emt 0:00:08]} Nxb5 {[%emt 0:00:43]} 47. Rb8 {[%emt 0:02:58]} Nc7 {[%emt 0:02:
07]} 48. Rb7 {[%emt 0:02:41]} Re7 {[%emt 0:00:09]} 49. Rh6 {[%emt 0:00:27]} Ke8
{[%emt 0:00:50]} 50. Rxh5 {[%emt 0:00:26]} e2 {[%emt 0:00:16]} 51. Rh1 {
[%emt 0:00:04]} f4 {[%emt 0:00:41]} 52. Kd2 {[%emt 0:00:47]} Kd7 {[%emt 0:00:
28]} 53. Ke1 {[%emt 0:00:14]} f3 {[%emt 0:00:25]} 54. Kf2 {[%emt 0:00:25]} Kc6
{[%emt 0:00:43]} 55. Rb3 {[%emt 0:00:21]} Nd5 {[%emt 0:00:30]} 56. Rxf3 {
[%emt 0:00:22]} Nb4 {[%emt 0:00:33]} 57. a3 {[%emt 0:01:00]} Nd5 {[%emt 0:00:
29]} 58. Re1 {[%emt 0:00:15]} Ra7 {[%emt 0:00:32]} 59. Rxe2 {[%emt 0:00:12]}
Kb5 {[%emt 0:00:09]} 60. Re4 {[%emt 0:00:24]} Ra5 {[%emt 0:00:21]} 61. Rf5 {
[%emt 0:00:12]} Kc5 {[%emt 0:00:27]} 62. Ke2 {[%emt 0:00:37]} Rxa3 {[%emt 0:00:
52]} 63. Ree5 {[%emt 0:00:12]} Ra2+ {[%emt 0:00:06]} 64. Kd3 {[%emt 0:00:39]}
Ra3+ {[%emt 0:00:08]} 65. Kc2 {[%emt 0:00:45]} Ra2+ {[%emt 0:00:07]} 66. Kb1 {
[%emt 0:00:24]} Rd2 {[%emt 0:00:06]} 67. Kc1 {[%emt 0:00:05]} Rd4 {[%emt 0:00:
08]} 68. Re8 {[%emt 0:01:39]} Kb4 {[%emt 0:00:51]} 69. Rb8+ {[%emt 0:00:15]}
Kc4 {[%emt 0:00:24]} 70. Rc8+ {[%emt 0:00:27]} Kb4 {[%emt 0:00:10]} 71. Rf7 {
[%emt 0:00:21]} Kb3 {[%emt 0:00:57]} 72. Rb7+ {[%emt 0:01:01]} Nb4 {[%emt 0:00:
06]} 73. Rc2 {[%emt 0:00:53]} Ka4 {[%emt 0:00:45]} 74. Rd2 {[%emt 0:00:22]} Rh4
{[%emt 0:01:34]} 75. Kb2 {[%emt 0:00:29]} Rh3 {[%emt 0:00:45]} 76. Rd4 {
[%emt 0:00:45]} Rh2+ {[%emt 0:00:26]} 77. Kc1 {[%emt 0:00:16]} Rh1+ $14 {
[%emt 0:00:17]} 78. Kd2 {[%emt 0:00:18]} Rh2+ {[%emt 0:00:09]} 79. Ke3 {
[%emt 0:00:04]} Rh3+ {[%emt 0:00:29]} 80. Ke4 {[%emt 0:00:15]} Rh4+ {[%emt 0:
00:44]} 81. Ke5 {[%emt 0:00:14]} Rh5+ {[%emt 0:00:12]} 82. Kd6 {[%emt 0:00:17]}
Rh6+ {[%emt 0:00:06]} 83. Kc7 {[%emt 0:00:31]} Rh7+ {[%emt 0:00:16]} 84. Kb8 {
[%emt 0:00:11]} Rxb7+ {[%emt 0:01:12]} 85. Kxb7 {[%emt 0:00:06]} Kb5 {[%emt 0:
00:06]} 86. Rh4 {[%emt 0:00:16]} Kc5 {[%emt 0:00:10]} 87. Kc7 {[%emt 0:00:08]}
Nd5+ {[%emt 0:00:15]} 88. Kd7 {[%emt 0:00:12]} Nb6+ {[%emt 0:00:10]} 89. Ke6 {
[%emt 0:00:13]} Nc4 {[%emt 0:00:13]} 90. Rh1 {[%emt 0:00:43]} Kd4 {[%emt 0:00:
24]} 91. Rh5 {[%emt 0:00:30]} Nb6 {[%emt 0:00:57]} 92. Re5 {[%emt 0:00:42]} Kc4
{[%emt 0:00:59]} 93. Kd6 {[%emt 0:00:17]} Kd4 {[%emt 0:00:13]} 94. Rb5 {
[%emt 0:00:21]} Nc4+ {[%emt 0:00:07]} 95. Ke6 {[%emt 0:00:09]} Ke4 {[%emt 0:00:
10]} 96. Rd5 {[%emt 0:00:32]} Ne3 {[%emt 0:00:12]} 97. Rh5 {[%emt 0:00:31]} Ng2
{[%emt 0:01:38]} 98. Ra5 {[%emt 0:00:10]} Ne3 {[%emt 0:00:18]} 99. Ra4+ {
[%emt 0:00:23]} Kd3 {[%emt 0:00:17]} 100. Ke5 {[%emt 0:00:12]} Nc4+ {[%emt 0:
00:18]} 101. Kf5 {[%emt 0:00:18]} Kd4 {[%emt 0:00:09]} 1/2-1/2

[Event "23rd ETCC Women 2021"]
[Site "Catez"]
[Date "2021.11.14"]
[Round "3.48"]
[White "Hauksdottir, Hrund"]
[Black "Katkov, Michelle"]
[Result "0-1"]
[ECO "C54"]
[WhiteElo "1731"]
[BlackElo "2059"]
[Annotator "ChessBase"]
[PlyCount "194"]
[EventDate "2021.11.08"]
[EventType "team-tourn"]
[EventCountry "SLO"]
[SourceTitle "playchess.com"]
[Source "ChessBase"]
[SourceQuality "1"]
[WhiteTeam "Iceland"]
[BlackTeam "Israel"]
[WhiteTeamCountry "ISL"]
[BlackTeamCountry "ISR"]
[TimeControl "40/5400+30:1800+30"]

1. e4 {[%emt 0:00:04]} e5 {[%emt 0:00:07]} 2. Nf3 {[%emt 0:00:10]} Nc6 {
[%emt 0:00:04]} 3. Bc4 {[%emt 0:00:11]} Bc5 {[%emt 0:00:07]} 4. c3 {[%emt 0:00:
34]} Nf6 {[%emt 0:00:07]} 5. d3 {[%emt 0:00:24]} O-O {[%emt 0:00:43]} 6. O-O {
[%emt 0:00:43]} d6 {[%emt 0:00:30]} 7. Re1 {[%emt 0:00:59]} a5 {[%emt 0:08:19]}
8. h3 {[%emt 0:05:40]} Ne7 {[%emt 0:10:40]} 9. Nbd2 {[%emt 0:10:41]} Ba7 {
[%emt 0:02:05]} 10. Nf1 {[%emt 0:13:36]} Ng6 {[%emt 0:00:48]} 11. a4 {[%emt 0:
10:57]} Be6 {[%emt 0:08:07]} 12. Bxe6 {[%emt 0:09:23]} fxe6 {[%emt 0:02:11]}
13. Ng3 {[%emt 0:01:59]} Qe8 {[%emt 0:05:43]} 14. d4 {[%emt 0:06:33]} exd4 {
[%emt 0:01:18]} 15. Nxd4 {[%emt 0:03:01]} Nd7 {[%emt 0:05:08]} 16. Be3 {
[%emt 0:03:33]} Qf7 {[%emt 0:03:26]} 17. Qc2 {[%emt 0:07:33]} Nge5 {[%emt 0:13:
15]} 18. b3 {[%emt 0:01:49]} Qg6 {[%emt 0:03:52]} 19. Rad1 {[%emt 0:05:23]}
Bxd4 {[%emt 0:13:01]} 20. cxd4 {[%emt 0:02:28]} Nc6 {[%emt 0:00:07]} 21. Qe2 {
[%emt 0:06:23]} Nf6 {[%emt 0:02:15]} 22. Qb5 {[%emt 0:01:52]} Rab8 {[%emt 0:04:
56]} 23. d5 {[%emt 0:02:05]} exd5 {[%emt 0:00:58]} 24. exd5 {[%emt 0:00:09]}
Ne5 {[%emt 0:00:08]} 25. Qxa5 {[%emt 0:00:57]} Nh5 {[%emt 0:04:18]} 26. Nxh5 {
[%emt 0:03:30]} Nf3+ {[%emt 0:00:07]} 27. Kf1 {[%emt 0:00:25]} Nxe1 {[%emt 0:
02:43]} 28. Nf4 {[%emt 0:00:22]} Rxf4 {[%emt 0:01:38]} 29. Bxf4 {[%emt 0:00:07]
} Nxg2 {[%emt 0:00:34]} 30. Qxc7 {[%emt 0:00:56]} Rf8 {[%emt 0:00:36]} 31. Bxd6
{[%emt 0:00:33]} Ne3+ {[%emt 0:01:11]} 32. Ke2 {[%emt 0:00:37]} Qh5+ {[%emt 0:
06:15]} 33. Kxe3 {[%emt 0:01:07]} Qxd1 {[%emt 0:01:09]} 34. Bxf8 {[%emt 0:00:
29]} Qxb3+ {[%emt 0:00:16]} 35. Ke2 {[%emt 0:00:45]} Qb2+ {[%emt 0:00:45]} 36.
Ke1 {[%emt 0:01:02]} Qb1+ {[%emt 0:00:10]} 37. Kd2 {[%emt 0:00:36]} Qa2+ {
[%emt 0:00:21]} 38. Kc3 {[%emt 0:00:43]} Qa1+ {[%emt 0:00:26]} 39. Kd3 {
[%emt 0:00:13]} Qd1+ {[%emt 0:00:19]} 40. Ke3 {[%emt 0:00:23]} Qb3+ {[%emt 0:
00:23]} 41. Kd2 {[%emt 0:05:30]} Qxd5+ {[%emt 0:00:24]} 42. Ke2 {[%emt 0:01:51]
} Kxf8 {[%emt 0:02:14]} 43. Qf4+ {[%emt 0:00:46]} Kg8 {[%emt 0:01:33]} 44. h4 {
[%emt 0:04:18]} g6 {[%emt 0:04:30]} 45. Ke3 {[%emt 0:02:43]} Qb3+ {[%emt 0:00:
19]} 46. Kd2 {[%emt 0:01:23]} Qb2+ {[%emt 0:04:45]} 47. Kd3 {[%emt 0:01:17]}
Qa3+ {[%emt 0:00:44]} 48. Kc2 {[%emt 0:03:14]} Qe7 {[%emt 0:00:22]} 49. Kc3 {
[%emt 0:02:03]} Kg7 {[%emt 0:00:13]} 50. Kc4 {[%emt 0:01:00]} Qe6+ {[%emt 0:01:
06]} 51. Kc5 {[%emt 0:04:27]} Qc6+ {[%emt 0:00:17]} 52. Kb4 {[%emt 0:00:15]}
Qb6+ {[%emt 0:00:04]} 53. Kc4 {[%emt 0:00:27]} h5 {[%emt 0:02:31]} 54. Kd3 {
[%emt 0:06:03]} Qb3+ {[%emt 0:00:22]} 55. Ke2 {[%emt 0:00:25]} Qe6+ {[%emt 0:
01:19]} 56. Kf3 {[%emt 0:01:00]} Qb3+ {[%emt 0:02:06]} 57. Kg2 {[%emt 0:00:16]}
Qd5+ {[%emt 0:00:20]} 58. Kh2 {[%emt 0:00:32]} Qd7 {[%emt 0:00:45]} 59. Kg2 {
[%emt 0:00:43]} Qc6+ {[%emt 0:01:26]} 60. Kh2 {[%emt 0:00:11]} Qd5 {[%emt 0:02:
47]} 61. Kg3 {[%emt 0:01:02]} Qd8 {[%emt 0:08:09]} 62. Kg2 {[%emt 0:01:25]} Qe7
{[%emt 0:01:12]} 63. Kg3 {[%emt 0:00:31]} Kg8 {[%emt 0:00:09]} 64. Kg2 {
[%emt 0:00:23]} Kh7 {[%emt 0:00:47]} 65. Kg3 {[%emt 0:00:21]} Qg7 {[%emt 0:00:
20]} 66. Kh3 {[%emt 0:00:30]} b6 {[%emt 0:01:08]} 67. Kg3 {[%emt 0:00:47]} Qb7
{[%emt 0:00:09]} 68. Qe5 {[%emt 0:00:32]} Qc6 {[%emt 0:01:30]} 69. Qf4 {
[%emt 0:00:18]} Kg7 {[%emt 0:00:50]} 70. Qe5+ {[%emt 0:00:45]} Kf7 {[%emt 0:00:
13]} 71. Qf4+ {[%emt 0:00:09]} Ke7 {[%emt 0:00:31]} 72. Qe5+ {[%emt 0:00:16]}
Kd8 {[%emt 0:01:23]} 73. Qh8+ {[%emt 0:01:45]} Kc7 {[%emt 0:00:16]} 74. Qe5+ {
[%emt 0:00:20]} Kb7 {[%emt 0:00:40]} 75. Qd4 {[%emt 0:00:27]} Ka6 {[%emt 0:00:
39]} 76. Qb4 {[%emt 0:00:57]} Qc5 {[%emt 0:00:47]} 77. Qd2 {[%emt 0:00:37]}
Qe5+ {[%emt 0:01:13]} 78. Kh3 {[%emt 0:00:31]} Qf5+ {[%emt 0:00:19]} 79. Kh2 {
[%emt 0:00:13]} Qe4 {[%emt 0:00:25]} 80. f4 {[%emt 0:00:45]} Qxa4 {[%emt 0:00:
49]} 81. Qd3+ {[%emt 0:00:07]} Ka5 {[%emt 0:00:21]} 82. Qxg6 {[%emt 0:00:19]}
Qxf4+ {[%emt 0:00:07]} 83. Kh3 {[%emt 0:00:15]} Qf3+ {[%emt 0:00:15]} 84. Kh2 {
[%emt 0:00:16]} b5 {[%emt 0:00:25]} 85. Qc2 {[%emt 0:01:15]} Qf4+ {[%emt 0:00:
22]} 86. Kh3 {[%emt 0:00:12]} Qg4+ {[%emt 0:00:07]} 87. Kh2 {[%emt 0:00:20]}
Qxh4+ {[%emt 0:00:03]} 88. Kg2 {[%emt 0:00:14]} Qg4+ {[%emt 0:00:45]} 89. Kh2 {
[%emt 0:00:13]} Qf4+ {[%emt 0:00:27]} 90. Kg2 {[%emt 0:00:14]} Qg5+ {[%emt 0:
00:13]} 91. Kh2 {[%emt 0:00:08]} Qe5+ {[%emt 0:00:05]} 92. Kg2 {[%emt 0:00:41]}
b4 {[%emt 0:00:09]} 93. Qa2+ {[%emt 0:00:28]} Kb5 {[%emt 0:00:09]} 94. Qc2 {
[%emt 0:00:51]} Qd5+ {[%emt 0:01:31]} 95. Kg3 {[%emt 0:00:42]} b3 {[%emt 0:00:
39]} 96. Qc3 {[%emt 0:00:23]} h4+ {[%emt 0:01:19]} 97. Kxh4 {[%emt 0:00:22]}
Qc4+ {[%emt 0:00:05]} 0-1

[Event "23rd ETCC Women 2021"]
[Site "Catez"]
[Date "2021.11.14"]
[Round "3.49"]
[White "Hrescak, Ivana"]
[Black "Stojkovska, Monika"]
[Result "0-1"]
[ECO "E46"]
[WhiteElo "2138"]
[BlackElo "2066"]
[Annotator "NA"]
[PlyCount "78"]
[EventDate "2021.11.08"]
[EventType "team-tourn"]
[EventCountry "SLO"]
[SourceTitle "playchess.com"]
[Source "ChessBase"]
[SourceQuality "1"]
[WhiteTeam "Slovenia"]
[BlackTeam "Macedonia"]
[WhiteTeamCountry "SLO"]
[BlackTeamCountry "MKD"]
[TimeControl "40/5400+30:1800+30"]

1. d4 {[%emt 0:00:03]} e6 {[%emt 0:00:13]} 2. c4 {[%emt 0:00:12]} Nf6 {[%emt 0:
00:06]} 3. Nc3 {[%emt 0:00:05]} Bb4 {[%emt 0:00:12]} 4. e3 {[%emt 0:00:05]} O-O
{[%emt 0:00:21]} 5. Nge2 {[%emt 0:00:03]} d5 {[%emt 0:00:55]} 6. a3 {[%emt 0:
00:08]} Be7 {[%emt 0:00:39]} 7. cxd5 {[%emt 0:00:56]} exd5 {[%emt 0:00:09]} 8.
Nf4 {[%emt 0:00:06]} c6 {[%emt 0:00:23]} 9. Bd3 {[%emt 0:03:11]} Re8 {[%emt 0:
01:02]} 10. O-O {[%emt 0:00:10]} Nbd7 {[%emt 0:00:42]} 11. Bc2 {[%emt 0:04:14]}
Bd6 {[%emt 0:03:11]} 12. f3 {[%emt 0:06:13]} b6 {[%emt 0:06:28]} 13. e4 {
[%emt 0:17:06]} Ba6 {[%emt 0:08:56]} 14. Rf2 {[%emt 0:15:51]} dxe4 {[%emt 0:17:
31]} 15. fxe4 {[%emt 0:03:28]} c5 {[%emt 0:11:28]} 16. e5 {[%emt 0:09:56]} Nxe5
{[%emt 0:10:25]} 17. dxe5 {[%emt 0:01:18]} Bxe5 {[%emt 0:00:35]} 18. Bd2 {
[%emt 0:33:11]} Bd4 {[%emt 0:02:12]} 19. Be1 {[%emt 0:00:01]} Qc7 {[%emt 0:19:
35]} 20. Nfd5 {[%emt 0:00:44]} Nxd5 {[%emt 0:01:01]} 21. Nxd5 {[%emt 0:00:02]}
Qe5 {[%emt 0:00:05]} 22. Nc3 {[%emt 0:02:27]} Rad8 {[%emt 0:00:03]} 23. Qb1 {
[%emt 0:00:59]} g6 {[%emt 0:02:56]} 24. Ne4 {[%emt 0:00:08]} Bb7 {[%emt 0:06:
00]} 25. Bc3 {[%emt 0:01:27]} Bxe4 {[%emt 0:01:29]} 26. Bxd4 {[%emt 0:00:06]}
Qxd4 {[%emt 0:00:57]} 27. Bxe4 {[%emt 0:00:14]} Rxe4 {[%emt 0:00:30]} 28. Qf1 {
[%emt 0:01:01]} Rf4 {[%emt 0:02:22]} 29. Rb1 {[%emt 0:00:51]} Rd6 {[%emt 0:03:
29]} 30. Re1 {[%emt 0:00:37]} Rdf6 {[%emt 0:00:36]} 31. Ree2 {[%emt 0:00:11]}
Rxf2 {[%emt 0:00:15]} 32. Rxf2 {[%emt 0:00:03]} Kf8 {[%emt 0:00:51]} 33. g3 {
[%emt 0:00:19]} Rxf2 {[%emt 0:00:16]} 34. Qxf2 {[%emt 0:00:01]} Qxf2+ {[%emt 0:
00:10]} 35. Kxf2 {[%emt 0:00:01]} Ke7 {[%emt 0:00:11]} 36. Ke3 {[%emt 0:00:06]}
Kd6 {[%emt 0:00:37]} 37. Ke4 {[%emt 0:00:22]} b5 {[%emt 0:00:21]} 38. g4 {
[%emt 0:00:22]} f6 {[%emt 0:00:45]} 39. h4 {[%emt 0:00:07]} Ke6 {[%emt 0:00:59]
} 0-1